bitfinex/quotes_BTCUSD_20230120
["timestamp","ask_amount","ask_price","bid_price","bid_amount"]
[1674188977474,0.0039329,21122.0,21121.0,5.06553264]
[1674188978007,0.0039329,21122.0,21121.0,5.40496473]
[1674188979655,0.0039329,21122.0,21121.0,6.69988426]
[1674188980058,0.00154793,21122.0,21121.0,6.46316426]
[1674188980569,0.00154793,21122.0,21121.0,5.16824473]
[1674188980859,0.00154793,21122.0,21121.0,3.19077917]
[1674188981086,0.00154793,21122.0,21121.0,3.44980528]
[1674188981348,0.00154793,21122.0,21121.0,3.15825589]
[1674188981605,0.00154793,21122.0,21121.0,3.14696432]
[1674188982370,0.00154793,21122.0,21121.0,3.09034785]
[1674188983440,0.00154793,21122.0,21121.0,3.38191785]
[1674188983678,0.00154793,21122.0,21121.0,3.67627942]
[1674188983903,0.00154793,21122.0,21121.0,3.70164747]
[1674188984163,0.00154793,21122.0,21121.0,3.38418915]
[1674188984705,0.00154793,21122.0,21121.0,3.15773562]
[1674188984964,0.00154793,21122.0,21121.0,3.47519394]
[1674188985226,0.00154793,21122.0,21121.0,3.44982589]
[1674188985487,0.00154793,21122.0,21121.0,3.45000185]
[1674188985771,0.00154793,21122.0,21121.0,3.47111191]
[1674188986766,0.00154793,21122.0,21121.0,3.69771417]
[1674188987564,0.00154793,21122.0,21121.0,3.15365359]
[1674188987814,0.00154793,21122.0,21121.0,3.38029098]
[1674188988049,0.00154793,21122.0,21121.0,3.69774872]
[1674188988588,0.00154793,21122.0,21121.0,3.69773061]
[1674188990228,0.00154793,21122.0,21121.0,3.38027229]
[1674188990452,0.00154793,21122.0,21121.0,3.47111191]
[1674188991000,0.00154793,21122.0,21121.0,3.75000575]
[1674188991748,0.00091558,21122.0,21121.0,3.46675589]
[1674188992000,0.00091558,21122.0,21121.0,3.75000513]
[1674188992495,0.00091558,21122.0,21121.0,3.63760513]
[1674188996469,0.00091558,21122.0,21121.0,3.35435589]
[1674188997519,0.00091558,21122.0,21121.0,3.63753012]
[1674188998259,0.00091558,21122.0,21121.0,3.35435589]
[1674189000321,0.00091558,21122.0,21121.0,3.05435589]
[1674189000573,0.00091558,21122.0,21121.0,3.63751743]
[1674189000841,0.00091558,21122.0,21121.0,3.35435589]
[1674189001389,0.00091558,21122.0,21121.0,3.63754857]
[1674189001618,0.00091558,21122.0,21121.0,3.35435589]
[1674189002398,0.00091558,21122.0,21121.0,4.2043943]
[1674189002724,0.00091558,21122.0,21121.0,4.3167943]
[1674189003745,0.00091558,21122.0,21121.0,3.97736221]
[1674189004005,0.00091558,21122.0,21121.0,4.3172178]
[1674189004290,0.00091558,21122.0,21121.0,3.97736221]
[1674189004545,0.00091558,21122.0,21121.0,4.31718046]
[1674189004816,0.00091558,21122.0,21121.0,3.97736221]
[1674189005086,0.00091558,21122.0,21121.0,4.31717121]
[1674189008827,5.58e-06,21122.0,21121.0,4.9063729]
[1674189009036,0.01895037,21123.0,21122.0,0.09695727]
[1674189009266,0.01895037,21123.0,21122.0,3.72580152]
[1674189009502,0.01895037,21123.0,21122.0,4.99616491]
[1674189009942,0.01895037,21123.0,21122.0,5.3718684]
[1674189010856,0.01895037,21123.0,21122.0,5.42116182]
[1674189011116,0.01895037,21123.0,21122.0,5.51316182]
[1674189011369,0.01895037,21123.0,21122.0,5.51376282]
[1674189011696,0.00487867,21123.0,21122.0,5.51376282]
[1674189011885,0.00487867,21123.0,21122.0,4.21986752]
[1674189012393,0.00487867,21123.0,21122.0,3.60627771]
[1674189012623,0.00487867,21123.0,21122.0,3.49387771]
[1674189013664,0.00487867,21123.0,21122.0,3.76760046]
[1674189013914,0.00487867,21123.0,21122.0,4.10730395]
[1674189014439,0.00487867,21123.0,21122.0,3.49387771]
[1674189018753,0.00487867,21123.0,21122.0,3.79945419]
[1674189018984,0.00487867,21123.0,21122.0,3.4994496]
[1674189019510,0.00487867,21123.0,21122.0,3.49945437]
[1674189019778,0.00487867,21123.0,21122.0,3.19895019]
[1674189020033,0.00487867,21123.0,21122.0,2.88210519]
[1674189020327,0.00487867,21123.0,21122.0,2.53409896]
[1674189020907,0.00487867,21123.0,21122.0,2.76047014]
[1674189021390,0.00487867,21123.0,21122.0,2.53409896]
[1674189021663,0.00487867,21123.0,21122.0,3.49497345]
[1674189022065,0.00487867,21123.0,21122.0,3.23635759]
[1674189022280,0.00487867,21123.0,21122.0,3.0874947]
[1674189023399,0.00487867,21123.0,21122.0,2.86112352]
[1674189023618,0.00487867,21123.0,21122.0,2.97433459]
[1674189024046,0.00487867,21123.0,21122.0,3.0874947]
[1674189024809,0.00487867,21123.0,21122.0,2.86112352]
[1674189025478,0.00487867,21123.0,21122.0,2.97432347]
[1674189025701,0.00487867,21123.0,21122.0,2.86112352]
[1674189026177,0.00487867,21123.0,21122.0,3.40616006]
[1674189026628,0.00487867,21123.0,21122.0,3.51929215]
[1674189027458,0.00487867,21123.0,21122.0,3.40615004]
[1674189027978,0.00487867,21123.0,21122.0,3.23635759]
[1674189028234,0.00487867,21123.0,21122.0,2.76291759]
[1674189028509,0.00487867,21123.0,21122.0,3.23635759]
[1674189029234,0.00487867,21123.0,21122.0,2.91769223]
[1674189029496,0.00487867,21123.0,21122.0,3.23635759]
[1674189030282,0.00487867,21123.0,21122.0,3.51929215]
[1674189031280,0.00487867,21123.0,21122.0,3.20062679]
[1674189031541,0.00487867,21123.0,21122.0,3.51929215]
[1674189031801,0.00487867,21123.0,21122.0,3.20062679]
[1674189032057,0.00487867,21123.0,21122.0,3.51929215]
[1674189033084,0.00487867,21123.0,21122.0,3.23635759]
[1674189033337,0.00487867,21123.0,21122.0,3.40619985]
[1674189034390,0.00487867,21123.0,21122.0,3.08753449]
[1674189034910,0.00487867,21123.0,21122.0,2.91769223]
[1674189035168,0.00487867,21123.0,21122.0,3.08752739]
[1674189035959,0.00477359,21123.0,21122.0,3.08752739]
[1674189036993,0.00477359,21123.0,21122.0,2.86115621]
[1674189037324,0.00477359,21123.0,21122.0,2.5292893]
[1674189038740,0.00477359,21123.0,21122.0,2.30291812]
[1674189039233,0.00477359,21123.0,21122.0,2.60961012]
[1674189040490,0.00477359,21123.0,21122.0,2.30291812]
[1674189040751,0.00477359,21123.0,21122.0,2.41612979]
[1674189041222,0.00477359,21123.0,21122.0,2.30291812]
[1674189041752,0.00477359,21123.0,21122.0,2.62080814]
[1674189042000,0.00477359,21123.0,21122.0,3.16402432]
[1674189042261,0.00477359,21123.0,21122.0,3.13970562]
[1674189042488,0.00477359,21123.0,21122.0,3.27529784]
[1674189042765,0.00477359,21123.0,21122.0,3.27658528]
[1674189044580,0.00477359,21123.0,21122.0,2.3589157]
[1674189044856,0.00477359,21123.0,21122.0,2.30231034]
[1674189045640,0.00477359,21123.0,21122.0,2.65302546]
[1674189045905,0.00477359,21123.0,21122.0,3.27915933]
[1674189046170,0.00477359,21123.0,21122.0,2.99622477]
[1674189046443,0.00477359,21123.0,21122.0,3.27915933]
[1674189048489,0.00477359,21123.0,21122.0,2.96231433]
[1674189049014,0.00477359,21123.0,21122.0,3.27915933]
[1674189050757,0.00477359,21123.0,21122.0,3.05278815]
[1674189051012,0.00477359,21123.0,21122.0,3.2792007]
[1674189051281,0.00477359,21123.0,21122.0,3.05278815]
[1674189052601,0.00477359,21123.0,21122.0,2.73594315]
[1674189053645,0.00477359,21123.0,21122.0,3.05278815]
[1674189053901,0.00477359,21123.0,21122.0,2.96244441]
[1674189054175,0.00477359,21123.0,21122.0,2.96250777]
[1674189054630,0.00477359,21123.0,21122.0,2.73594315]
[1674189055109,0.00477359,21123.0,21122.0,3.04869315]
[1674189056621,0.00477359,21123.0,21122.0,2.76575859]
[1674189057069,0.00477359,21123.0,21122.0,3.04900522]
[1674189058031,0.00477359,21123.0,21122.0,2.73625522]
[1674189058736,0.00466111,21123.0,21122.0,2.73625522]
[1674189059195,0.00466111,21123.0,21122.0,2.4183652]
[1674189059451,0.00466111,21123.0,21122.0,2.19614506]
[1674189059962,0.00466111,21123.0,21122.0,2.51466626]
[1674189060757,0.00466111,21123.0,21122.0,2.19614506]
[1674189061009,0.00466111,21123.0,21122.0,2.42281009]
[1674189062539,0.00466111,21123.0,21122.0,2.19614506]
[1674189062807,0.00466111,21123.0,21122.0,2.42282877]
[1674189065638,0.00466111,21123.0,21122.0,2.13958214]
[1674189066418,0.00466111,21123.0,21122.0,2.30958324]
[1674189066692,1.01759914,21123.0,21122.0,0.17729342]
[1674189069514,1.01759914,21123.0,21122.0,0.08529342]
[1674189069770,1.01859914,21123.0,21122.0,0.16229342]
[1674189072353,1.11002909,21123.0,21122.0,0.16229342]
[1674189072615,1.22232909,21123.0,21122.0,0.16229342]
[1674189072879,1.01111149,21123.0,21122.0,0.16229342]
[1674189074763,0.96477611,21123.0,21122.0,0.16229342]
[1674189075020,2.69888022,21123.0,21122.0,0.16229342]
[1674189075281,3.48199168,21123.0,21122.0,0.16229342]
[1674189075552,3.23693981,21123.0,21122.0,0.08529342]
[1674189075948,3.3502008,21123.0,21122.0,0.08729342]
[1674189075950,3.3502008,21123.0,21122.0,0.08529342]
[1674189076178,3.25093981,21123.0,21122.0,0.09129342]
[1674189076385,2.82533946,21123.0,21122.0,0.09129342]
[1674189076617,3.2105575,21123.0,21122.0,0.09129342]
[1674189076834,3.21055781,21123.0,21122.0,0.09129342]
[1674189077275,3.49466417,21123.0,21122.0,0.09129342]
[1674189077492,0.05231694,21121.0,21115.0,0.3185212]
[1674189077724,0.2247,21116.0,21115.0,0.02044865]
[1674189077960,0.63917662,21116.0,21115.0,0.02044865]
[1674189078168,0.52155,21116.0,21115.0,0.02044865]
[1674189078614,0.52155,21116.0,21114.0,0.53039916]
[1674189078869,0.1123,21116.0,21115.0,0.02089428]
[1674189079133,0.545096,21116.0,21115.0,0.12089428]
[1674189079384,0.555096,21116.0,21115.0,0.12089428]
[1674189079705,0.55452617,21116.0,21115.0,0.12089428]
[1674189079928,0.55452617,21116.0,21115.0,0.15689428]
[1674189080448,0.44222617,21116.0,21115.0,0.15689428]
[1674189080982,0.44222617,21116.0,21115.0,0.05689428]
[1674189082060,0.44228617,21116.0,21115.0,0.036]
[1674189082673,0.55388617,21116.0,21115.0,0.036]
[1674189083976,1.08948516,21116.0,21115.0,0.036]
[1674189088156,1.08942516,21116.0,21115.0,0.036]
[1674189090608,0.554296,21116.0,21115.0,0.036]
[1674189092967,0.90336319,21116.0,21114.0,0.1]
[1674189093230,0.47126719,21116.0,21115.0,0.036]
[1674189093488,0.90926219,21116.0,21114.0,0.1]
[1674189093750,0.450017,21115.0,21114.0,0.136]
[1674189094777,0.459017,21115.0,21114.0,0.136]
[1674189096586,0.347517,21115.0,21114.0,0.136]
[1674189096836,0.009,21115.0,21114.0,0.136]
[1674189097393,0.10373,21115.0,21114.0,0.136]
[1674189097659,0.96228711,21115.0,21114.0,0.136]
[1674189097927,0.96228711,21115.0,21114.0,0.036]
[1674189098180,0.96234711,21115.0,21114.0,0.036]
[1674189101336,1.07474711,21115.0,21114.0,0.036]
[1674189102562,1.18704711,21115.0,21114.0,0.036]
[1674189103320,1.18698711,21115.0,21114.0,0.036]
[1674189105280,0.99584711,21115.0,21114.0,0.036]
[1674189105526,0.88344711,21115.0,21114.0,0.036]
[1674189112725,0.009,21115.0,21114.0,0.036]
[1674189112997,0.009,21115.0,21114.0,1.97700824]
[1674189113268,0.009,21115.0,21114.0,3.13060877]
[1674189113530,0.009,21115.0,21114.0,3.2606038]
[1674189113816,0.009,21115.0,21114.0,3.55397672]
[1674189114077,0.00547915,21115.0,21114.0,3.49553009]
[1674189114338,0.00547915,21115.0,21114.0,4.21907053]
[1674189114802,0.00547915,21115.0,21114.0,4.21820156]
[1674189114804,0.00547915,21115.0,21114.0,3.60793009]
[1674189115374,6e-05,21117.0,21114.0,3.60793009]
[1674189115634,6e-05,21117.0,21116.0,0.62097088]
[1674189115895,6e-05,21117.0,21116.0,3.0797652]
[1674189116156,6e-05,21117.0,21116.0,4.19258197]
[1674189116413,6e-05,21117.0,21116.0,4.34203944]
[1674189116691,6e-05,21117.0,21116.0,4.42903944]
[1674189117242,6e-05,21117.0,21116.0,4.14557925]
[1674189117770,6e-05,21117.0,21116.0,4.31550283]
[1674189118032,6e-05,21117.0,21116.0,4.14557925]
[1674189118296,6e-05,21117.0,21116.0,4.42903944]
[1674189118761,6e-05,21117.0,21116.0,4.43410177]
[1674189118762,6e-05,21117.0,21116.0,4.42882378]
[1674189119086,6e-05,21117.0,21116.0,4.31529478]
[1674189119328,6e-05,21117.0,21116.0,4.42882378]
[1674189119583,6e-05,21117.0,21116.0,4.20227128]
[1674189119872,6e-05,21117.0,21116.0,4.145263]
[1674189120612,6e-05,21117.0,21116.0,4.42872319]
[1674189120870,6e-05,21117.0,21116.0,4.20227128]
[1674189121404,6e-05,21117.0,21116.0,4.42873661]
[1674189121918,6e-05,21117.0,21116.0,4.31511958]
[1674189122140,6e-05,21117.0,21116.0,4.14527642]
[1674189122632,6e-05,21117.0,21116.0,4.42873661]
[1674189123704,6e-05,21117.0,21116.0,4.32008222]
[1674189123987,6e-05,21117.0,21116.0,4.31505533]
[1674189124266,6e-05,21117.0,21116.0,4.32051852]
[1674189124794,6e-05,21117.0,21116.0,3.90586221]
[1674189125413,6e-05,21117.0,21116.0,3.74135861]
[1674189125676,6e-05,21117.0,21116.0,3.5715797]
[1674189126526,6e-05,21117.0,21116.0,3.74135861]
[1674189126805,6e-05,21117.0,21116.0,4.04135861]
[1674189127848,6e-05,21117.0,21116.0,3.57158217]
[1674189128106,6e-05,21117.0,21116.0,2.51145751]
[1674189128360,6e-05,21117.0,21116.0,2.19883919]
[1674189129433,6e-05,21117.0,21116.0,1.88188519]
[1674189129970,6e-05,21117.0,21116.0,3.72439772]
[1674189130271,6e-05,21117.0,21116.0,4.1999625]
[1674189130760,6e-05,21117.0,21116.0,3.86610762]
[1674189131001,6e-05,21117.0,21116.0,2.92442852]
[1674189131253,6e-05,21117.0,21116.0,4.03588944]
[1674189131491,6e-05,21117.0,21116.0,4.08675905]
[1674189131744,6e-05,21117.0,21116.0,4.03582057]
[1674189132238,6e-05,21117.0,21116.0,4.19984778]
[1674189132528,6e-05,21117.0,21116.0,4.20514001]
[1674189132792,6e-05,21117.0,21116.0,2.62439045]
[1674189133557,6e-05,21117.0,21116.0,2.51128455]
[1674189133834,6e-05,21117.0,21116.0,1.88171423]
[1674189135193,6e-05,21117.0,21116.0,1.99482013]
[1674189135485,6e-05,21117.0,21116.0,2.30743845]
[1674189135749,6e-05,21117.0,21116.0,2.19433255]
[1674189136787,6e-05,21117.0,21116.0,2.61909822]
[1674189137047,6e-05,21117.0,21116.0,2.5108634]
[1674189137299,6e-05,21117.0,21116.0,2.50599232]
[1674189137549,6e-05,21117.0,21116.0,2.91909822]
[1674189137804,0.40455193,21121.0,21116.0,2.91909822]
[1674189137805,0.05231694,21121.0,21117.0,0.1]
[1674189138082,0.05231694,21121.0,21119.0,0.2124]
[1674189138330,0.05231694,21121.0,21120.0,0.316884]
[1674189138846,0.05231694,21121.0,21120.0,0.036]
[1674189139370,0.05231694,21121.0,21119.0,1.47200832]
[1674189139637,0.05731694,21121.0,21120.0,0.005]
[1674189140396,0.05231694,21121.0,21119.0,1.50799532]
[1674189140727,0.05231694,21121.0,21119.0,1.195377]
[1674189141168,0.05731694,21121.0,21119.0,1.38969797]
[1674189141428,0.05731694,21121.0,21120.0,0.01332018]
[1674189141690,0.05731694,21121.0,21120.0,0.96028818]
[1674189142504,0.05731694,21121.0,21120.0,0.99628818]
[1674189142770,0.05231694,21121.0,21120.0,0.99628818]
[1674189143031,0.05731694,21121.0,21120.0,1.00128818]
[1674189147517,0.05731694,21121.0,21120.0,1.4139065]
[1674189148043,0.05731694,21121.0,21120.0,1.6379065]
[1674189148310,0.05731694,21121.0,21120.0,1.9547875]
[1674189148581,0.05731694,21121.0,21120.0,1.32528818]
[1674189149623,0.05731694,21121.0,21120.0,1.9509505]
[1674189150893,0.05731694,21121.0,21120.0,2.06402238]
[1674189151407,0.05731694,21121.0,21120.0,3.30602222]
[1674189151660,0.05731694,21121.0,21120.0,3.52826469]
[1674189151918,0.05731694,21121.0,21120.0,3.58480063]
[1674189152178,0.05731694,21121.0,21120.0,3.75474607]
[1674189153484,0.05731694,21121.0,21120.0,3.75954373]
[1674189154263,0.05731694,21121.0,21120.0,3.45954373]
[1674189154522,0.05731694,21121.0,21120.0,2.55532638]
[1674189154778,0.05731694,21121.0,21120.0,2.72126582]
[1674189155278,0.05731694,21121.0,21120.0,2.38538094]
[1674189155537,0.05731694,21121.0,21120.0,2.70226194]
[1674189155793,0.05731694,21121.0,21120.0,3.65075347]
[1674189156049,0.05731694,21121.0,21120.0,2.59049021]
[1674189156343,0.05731694,21121.0,21120.0,2.81663396]
[1674189156575,0.05731694,21121.0,21120.0,4.23708596]
[1674189156817,0.05731694,21121.0,21120.0,4.06714052]
[1674189157300,0.05731694,21121.0,21120.0,4.35060071]
[1674189157611,0.05731694,21121.0,21120.0,4.23707697]
[1674189159162,0.05731694,21121.0,21120.0,4.35060071]
[1674189159648,0.05731694,21121.0,21120.0,4.06714052]
[1674189160410,0.05731694,21121.0,21120.0,4.23702703]
[1674189160939,0.05231694,21121.0,21120.0,4.23202703]
[1674189161531,0.05231694,21121.0,21120.0,3.70588328]
[1674189161812,0.05231694,21121.0,21120.0,3.93202703]
[1674189162338,0.05231694,21121.0,21120.0,3.79288328]
[1674189162609,0.05220744,21121.0,21120.0,3.79288328]
[1674189163405,0.05220744,21121.0,21120.0,3.90614256]
[1674189163967,0.05220744,21121.0,21120.0,3.25770996]
[1674189164262,0.05220744,21121.0,21120.0,2.31088994]
[1674189164541,0.05220744,21121.0,21120.0,2.94085398]
[1674189165322,0.05220744,21121.0,21120.0,1.88074966]
[1674189165879,0.05220744,21121.0,21120.0,1.65674966]
[1674189166157,0.05220744,21121.0,21120.0,1.77000894]
[1674189166419,0.05220744,21121.0,21120.0,1.55674966]
[1674189168198,0.34718444,21123.0,21120.0,1.55674966]
[1674189168476,0.34718444,21123.0,21120.0,1.86936798]
[1674189168719,0.34718444,21123.0,21120.0,1.55674966]
[1674189168978,0.330911,21122.0,21120.0,1.55674966]
[1674189169239,0.324589,21121.0,21120.0,1.46974966]
[1674189169495,0.00466111,21123.0,21121.0,0.00544648]
[1674189169769,0.00466111,21123.0,21122.0,0.47344]
[1674189170569,0.00466111,21123.0,21122.0,0.50944]
[1674189171105,0.32480011,21123.0,21122.0,0.50944]
[1674189171383,0.00466111,21123.0,21122.0,0.50944]
[1674189171942,0.31634711,21123.0,21122.0,0.57444]
[1674189173195,0.69679692,21123.0,21122.0,0.57444]
[1674189173417,0.38511092,21123.0,21122.0,0.57444]
[1674189173700,0.70184292,21123.0,21122.0,0.57444]
[1674189174794,0.70184292,21123.0,21122.0,0.101]
[1674189174795,0.38511092,21123.0,21122.0,0.101]
[1674189175022,0.71248492,21123.0,21122.0,0.101]
[1674189183953,0.38511092,21123.0,21122.0,0.101]
[1674189184219,0.71115192,21123.0,21122.0,0.101]
[1674189185819,0.71115192,21123.0,21121.0,0.34553469]
[1674189186095,0.71115192,21123.0,21122.0,0.036]
[1674189187161,0.39111092,21123.0,21122.0,0.036]
[1674189187416,0.69606092,21123.0,21122.0,0.036]
[1674189187675,0.70006092,21123.0,21122.0,0.062]
[1674189189267,0.39511092,21123.0,21122.0,0.062]
[1674189190591,0.70451692,21123.0,21122.0,0.062]
[1674189191078,0.70451692,21123.0,21122.0,0.112]
[1674189193471,0.70451692,21123.0,21121.0,0.26460204]
[1674189193734,0.70451692,21123.0,21122.0,0.036]
[1674189193735,0.39511092,21123.0,21122.0,0.036]
[1674189194241,0.72660692,21123.0,21121.0,0.26460204]
[1674189194532,0.327422,21122.0,21121.0,0.30060204]
[1674189194806,0.39511092,21123.0,21121.0,0.30060204]
[1674189195262,0.38911092,21123.0,21122.0,0.003]
[1674189195491,0.69938292,21123.0,21121.0,0.30060204]
[1674189195745,0.319254,21122.0,21121.0,0.30060204]
[1674189195996,0.38511092,21123.0,21121.0,0.30060204]
[1674189196249,0.009,21122.0,21121.0,0.30360204]
[1674189197282,0.009,21122.0,21121.0,0.30581919]
[1674189200917,0.42535248,21122.0,21121.0,0.30360204]
[1674189201184,0.75896548,21122.0,21121.0,0.30360204]
[1674189201449,0.42535248,21122.0,21121.0,1.36371747]
[1674189202993,0.42535248,21122.0,21121.0,1.25045819]
[1674189203629,0.42535248,21122.0,21121.0,1.36361126]
[1674189204057,0.42535248,21122.0,21121.0,0.30349583]
[1674189204324,0.42535248,21122.0,21121.0,1.25036256]
[1674189204583,0.42535248,21122.0,21121.0,0.30349583]
[1674189204843,0.42535248,21122.0,21121.0,1.36362595]
[1674189205098,0.42535248,21122.0,21121.0,1.25036239]
[1674189205632,0.42535248,21122.0,21121.0,0.30349583]
[1674189205891,0.73039348,21122.0,21121.0,1.25036313]
[1674189206204,0.42535248,21122.0,21121.0,1.25036313]
[1674189206409,0.42535248,21122.0,21121.0,0.30349583]
[1674189206650,0.75733148,21122.0,21121.0,0.30349583]
[1674189207155,0.42535248,21122.0,21121.0,0.30349583]
[1674189207415,0.75034248,21122.0,21121.0,0.30349583]
[1674189208486,0.75034248,21122.0,21121.0,0.30360667]
[1674189210097,0.75034248,21122.0,21121.0,0.20349583]
[1674189210365,0.75034248,21122.0,21121.0,0.68556867]
[1674189210625,0.42535248,21122.0,21121.0,0.68556867]
[1674189210886,0.74272448,21122.0,21121.0,0.20349583]
[1674189215046,0.326372,21122.0,21121.0,0.20349583]
[1674189215313,0.009,21122.0,21121.0,0.20349583]
[1674189215576,0.351153,21122.0,21121.0,0.20349583]
[1674189215837,0.741629,21122.0,21120.0,0.50436687]
[1674189216107,0.332609,21121.0,21120.0,0.50436687]
[1674189216367,0.433025,21122.0,21120.0,1.93324441]
[1674189216627,0.433025,21122.0,21121.0,0.036]
[1674189216889,0.753492,21122.0,21121.0,0.509462]
[1674189217143,0.424025,21122.0,21121.0,0.509462]
[1674189217837,0.747295,21122.0,21121.0,0.509462]
[1674189218093,0.424025,21122.0,21121.0,0.509462]
[1674189218348,0.771583,21122.0,21121.0,0.509462]
[1674189218597,0.433025,21122.0,21121.0,0.509462]
[1674189218853,0.760034,21122.0,21121.0,0.509462]
[1674189219110,0.433025,21122.0,21121.0,0.509462]
[1674189220146,0.433025,21122.0,21121.0,1.66958574]
[1674189220909,0.433025,21122.0,21121.0,1.71843541]
[1674189221162,0.009,21122.0,21121.0,2.03020941]
[1674189221683,0.009,21122.0,21121.0,0.65831167]
[1674189221949,0.009,21122.0,21121.0,1.60517439]
[1674189222196,0.009,21122.0,21121.0,2.02364571]
[1674189222449,0.009,21122.0,21121.0,1.71843367]
[1674189222704,0.009,21122.0,21121.0,2.02364571]
[1674189224497,0.009,21122.0,21121.0,1.60517439]
[1674189224757,0.009,21122.0,21121.0,1.71843367]
[1674189225808,0.42606168,21122.0,21121.0,0.65831167]
[1674189227076,0.009,21122.0,21121.0,1.60516837]
[1674189227355,0.009,21122.0,21121.0,2.03529065]
[1674189227866,0.009,21122.0,21121.0,1.71842765]
[1674189228128,0.009,21122.0,21121.0,2.20517716]
[1674189228653,0.009,21122.0,21121.0,1.71842765]
[1674189228918,0.009,21122.0,21121.0,1.88831416]
[1674189229140,0.009,21122.0,21121.0,2.18702216]
[1674189229890,0.009,21122.0,21121.0,1.88831416]
[1674189230148,0.009,21122.0,21121.0,1.71842765]
[1674189230375,0.009,21122.0,21121.0,2.02363969]
[1674189231183,0.009,21122.0,21121.0,2.47108559]
[1674189231726,0.009,21122.0,21121.0,2.3059262]
[1674189232029,0.009,21122.0,21121.0,3.0962512]
[1674189232223,0.009,21122.0,21121.0,2.92636469]
[1674189232685,0.009,21122.0,21121.0,2.60950169]
[1674189234204,0.009,21122.0,21121.0,2.61007154]
[1674189236352,0.009,21122.0,21121.0,2.8319581]
[1674189236613,0.009,21122.0,21121.0,3.48853853]
[1674189237157,0.009,21122.0,21121.0,3.23883537]
[1674189237665,0.009,21122.0,21121.0,2.95537518]
[1674189237936,0.009,21122.0,21121.0,3.1252904]
[1674189238206,0.009,21122.0,21121.0,2.92197237]
[1674189238500,0.009,21122.0,21121.0,2.80842797]
[1674189238771,0.009,21122.0,21121.0,2.89915193]
[1674189239570,0.009,21122.0,21121.0,3.00293724]
[1674189240884,0.009,21122.0,21121.0,2.88966493]
[1674189241192,0.009,21122.0,21121.0,3.00293993]
[1674189241700,0.009,21122.0,21121.0,2.69556393]
[1674189243306,0.009,21122.0,21121.0,2.80843268]
[1674189244096,0.009,21122.0,21121.0,2.53028514]
[1674189244319,0.009,21122.0,21121.0,2.36036464]
[1674189245230,0.009,21122.0,21121.0,2.69530404]
[1674189247928,0.009,21122.0,21121.0,2.53028514]
[1674189248647,0.009,21122.0,21121.0,2.36036464]
[1674189251212,0.009,21122.0,21121.0,2.65167335]
[1674189251533,0.009,21122.0,21121.0,3.13329113]
[1674189251758,0.009,21122.0,21121.0,3.02038388]
[1674189253441,0.009,21122.0,21121.0,2.38049656]
[1674189253700,0.009,21122.0,21121.0,2.39833161]
[1674189253969,0.009,21122.0,21121.0,2.70299575]
[1674189254223,0.009,21122.0,21121.0,2.3682977]
[1674189254737,0.009,21122.0,21121.0,2.5382182]
[1674189255000,0.009,21122.0,21121.0,2.3682977]
[1674189255280,0.009,21122.0,21121.0,2.5382182]
[1674189255498,0.009,21122.0,21121.0,2.70317782]
[1674189256471,0.009,21122.0,21121.0,2.81608507]
[1674189257252,0.009,21122.0,21121.0,3.02006803]
[1674189257524,0.009,21122.0,21121.0,2.90680432]
[1674189258035,0.009,21122.0,21121.0,3.13294807]
[1674189258552,0.009,21122.0,21121.0,2.99902757]
[1674189258825,0.009,21122.0,21121.0,2.68216457]
[1674189259103,0.009,21122.0,21121.0,2.85204298]
[1674189259840,0.009,21122.0,21121.0,2.54737884]
[1674189260610,0.009,21122.0,21121.0,2.20883509]
[1674189260894,0.00890818,21122.0,21121.0,2.20883509]
[1674189262953,0.31634118,21122.0,21121.0,1.98727076]
[1674189263446,0.00890818,21122.0,21121.0,1.98727076]
[1674189263978,0.00890818,21122.0,21121.0,1.93842109]
[1674189264286,0.00390818,21122.0,21121.0,1.93842109]
[1674189265031,0.00390818,21122.0,21121.0,1.98136346]
[1674189265920,0.00390818,21122.0,21121.0,2.31679202]
[1674189266432,0.00390818,21122.0,21121.0,1.98136346]
[1674189267702,0.32881218,21122.0,21121.0,1.98136346]
[1674189268237,0.32482018,21122.0,21121.0,1.98136346]
[1674189268475,0.00390818,21122.0,21121.0,1.98136346]
[1674189269009,0.33585818,21122.0,21121.0,1.88136346]
[1674189269274,0.33585818,21122.0,21121.0,0.82123306]
[1674189269815,0.33585818,21122.0,21121.0,1.88135484]
[1674189270041,0.00390818,21122.0,21121.0,0.82123306]
[1674189270299,0.33207618,21122.0,21121.0,0.82123306]
[1674189270557,0.00390818,21122.0,21121.0,0.81273306]
[1674189270879,0.00390818,21122.0,21121.0,1.75958965]
[1674189270880,0.32322418,21122.0,21121.0,1.75958965]
[1674189271080,0.32322418,21122.0,21121.0,1.87286335]
[1674189271627,0.32322418,21122.0,21121.0,0.81273306]
[1674189271628,0.00390818,21122.0,21121.0,0.81273306]
[1674189271885,0.31599318,21122.0,21121.0,0.81273306]
[1674189272982,0.31599318,21122.0,21121.0,1.75957618]
[1674189273279,0.00390818,21122.0,21121.0,1.87284988]
[1674189273734,0.00390818,21122.0,21121.0,2.20018534]
[1674189273736,0.00390818,21122.0,21121.0,1.87284988]
[1674189274753,0.00390818,21122.0,21121.0,1.75957618]
[1674189274976,0.00390818,21122.0,21121.0,1.87284988]
[1674189275231,0.00390818,21122.0,21121.0,1.75957618]
[1674189275718,0.00390818,21122.0,21121.0,0.81273306]
[1674189275985,0.32621618,21122.0,21121.0,0.81273306]
[1674189276249,0.32621618,21122.0,21121.0,1.87284749]
[1674189276250,0.32590218,21122.0,21121.0,1.87284749]
[1674189276507,0.00390818,21122.0,21121.0,1.87284749]
[1674189276766,0.00390818,21122.0,21121.0,0.81273306]
[1674189277029,0.33832518,21122.0,21121.0,0.81273306]
[1674189277351,0.00390818,21122.0,21121.0,0.81273306]
[1674189277559,0.32742518,21122.0,21121.0,0.81273306]
[1674189278614,0.00390818,21122.0,21121.0,1.87284735]
[1674189279140,0.00390818,21122.0,21121.0,2.04272576]
[1674189279393,0.00390818,21122.0,21121.0,1.87284735]
[1674189280189,0.00390818,21122.0,21121.0,1.87265954]
[1674189281954,0.00390818,21122.0,21121.0,0.81254525]
[1674189282189,0.31843118,21122.0,21121.0,0.81254525]
[1674189282680,0.31843118,21122.0,21121.0,1.87265911]
[1674189282906,0.00390818,21122.0,21121.0,1.87265911]
[1674189283481,0.00390818,21122.0,21121.0,0.81254525]
[1674189283799,0.32552218,21122.0,21121.0,0.81254525]
[1674189283999,0.78333874,21122.0,21121.0,0.33908325]
[1674189288658,0.32552218,21122.0,21121.0,0.33908325]
[1674189291020,0.32552218,21122.0,21121.0,0.07951222]
[1674189293070,0.65666817,21122.0,21121.0,0.07951222]
[1674189295929,0.65666817,21122.0,21121.0,0.07894237]